bitfinex/quotes_BTCUSD_20230904
["timestamp","ask_amount","ask_price","bid_price","bid_amount"]
[1693796056053,0.01865058,25976.0,25975.0,0.73541678]
[1693796056267,0.01865058,25976.0,25975.0,0.73601678]
[1693796056485,0.01865058,25976.0,25975.0,0.59927678]
[1693796056696,0.01865058,25976.0,25975.0,0.59765678]
[1693796056905,0.01865058,25976.0,25975.0,0.59423678]
[1693796057107,0.01865058,25976.0,25975.0,0.61677678]
[1693796057491,0.01865058,25976.0,25975.0,0.61701678]
[1693796057683,0.01865058,25976.0,25975.0,0.61755678]
[1693796057902,0.01865058,25976.0,25975.0,0.61809678]
[1693796058137,0.01865058,25976.0,25975.0,0.63825678]
[1693796058339,0.01865058,25976.0,25975.0,0.63933678]
[1693796058547,0.01865058,25976.0,25975.0,0.63945678]
[1693796058732,0.01865058,25976.0,25975.0,0.77925678]
[1693796058944,0.01865058,25976.0,25975.0,0.78333678]
[1693796059155,0.01865058,25976.0,25975.0,0.78357678]
[1693796059353,0.01865058,25976.0,25975.0,0.78441678]
[1693796059504,0.01865058,25976.0,25975.0,0.78369678]
[1693796059717,0.01865058,25976.0,25975.0,0.78309678]
[1693796059937,0.01865058,25976.0,25975.0,0.78297678]
[1693796060114,0.01865058,25976.0,25975.0,0.78333678]
[1693796060320,0.01865058,25976.0,25975.0,0.79209678]
[1693796060517,0.17618181,25978.0,25975.0,0.79185678]
[1693796060694,0.01938181,25978.0,25977.0,0.083]
[1693796060922,0.01938181,25978.0,25977.0,0.20817]
[1693796061124,0.01938181,25978.0,25977.0,0.50859]
[1693796061318,0.01938181,25978.0,25977.0,0.50847]
[1693796061578,0.01938181,25978.0,25977.0,0.50805]
[1693796061729,0.01938181,25978.0,25977.0,0.50791]
[1693796061929,0.01938181,25978.0,25977.0,0.50755]
[1693796062134,0.01938181,25978.0,25977.0,0.51643]
[1693796062396,0.01438181,25978.0,25977.0,0.51373]
[1693796062569,0.01438181,25978.0,25977.0,0.52637]
[1693796062768,0.01438181,25978.0,25977.0,0.53603]
[1693796063187,0.01438181,25978.0,25977.0,0.58783523]
[1693796063443,0.01438181,25979.0,25977.0,1.12582201]
[1693796063781,0.01438181,25979.0,25978.0,0.47008678]
[1693796063932,0.01438181,25979.0,25978.0,0.73373678]
[1693796064139,0.01438181,25979.0,25978.0,0.73253678]
[1693796064349,0.01438181,25979.0,25978.0,0.73973678]
[1693796064574,0.01438181,25979.0,25978.0,0.82484017]
[1693796064781,0.01438181,25979.0,25978.0,0.82508017]
[1693796064993,0.01438181,25979.0,25978.0,0.82520017]
[1693796065213,0.01537016,25981.0,25978.0,1.13396017]
[1693796065420,0.01537016,25981.0,25979.0,0.3]
[1693796065623,0.01438181,25981.0,25979.0,0.30037]
[1693796065826,0.01438181,25981.0,25980.0,0.1044]
[1693796066029,0.01438181,25981.0,25980.0,0.10453]
[1693796066232,0.01438181,25981.0,25980.0,0.10429]
[1693796066444,0.01438181,25981.0,25980.0,0.10315]
[1693796066644,0.01438181,25981.0,25980.0,0.10441]
[1693796066850,0.01438181,25981.0,25980.0,0.10219]
[1693796067029,0.01438181,25981.0,25980.0,0.09805]
[1693796067203,0.01438181,25981.0,25980.0,0.09583]
[1693796067407,0.01438181,25981.0,25980.0,0.09571]
[1693796067586,0.01438181,25981.0,25980.0,0.09713]
[1693796067786,0.01438181,25981.0,25980.0,0.09677]
[1693796067992,0.01438181,25981.0,25980.0,0.09617]
[1693796068335,0.01438181,25981.0,25980.0,0.10299]
[1693796068548,0.01438181,25981.0,25980.0,0.10293]
[1693796068735,0.01438181,25981.0,25980.0,0.10245]
[1693796068874,0.01438181,25981.0,25980.0,0.10269]
[1693796069073,0.01438181,25981.0,25980.0,0.10275]
[1693796069277,0.01438181,25981.0,25980.0,0.10299]
[1693796069482,0.01438181,25981.0,25980.0,0.10329]
[1693796069692,0.01438181,25981.0,25980.0,0.10347]
[1693796069911,0.01438181,25981.0,25980.0,0.10353]
[1693796070535,0.01438181,25981.0,25980.0,0.10377]
[1693796070695,0.01438181,25981.0,25980.0,0.10443]
[1693796070889,0.01438181,25981.0,25980.0,0.10437]
[1693796071092,0.01438181,25981.0,25980.0,0.10419]
[1693796071352,0.01438181,25981.0,25980.0,0.10317]
[1693796072178,0.01438181,25981.0,25980.0,0.10377]
[1693796072387,0.01438181,25981.0,25980.0,0.10287]
[1693796072540,0.01438181,25981.0,25980.0,0.10293]
[1693796072964,0.01438181,25981.0,25980.0,0.10329]
[1693796073365,0.01438181,25981.0,25980.0,0.10317]
[1693796073538,0.01438181,25981.0,25980.0,0.10395]
[1693796073747,0.01438181,25982.0,25980.0,0.10395]
[1693796073992,0.01438181,25981.0,25980.0,0.10383]
[1693796074170,0.01438181,25981.0,25980.0,0.00837]
[1693796074365,0.01438181,25981.0,25980.0,0.10353]
[1693796074566,0.01438181,25981.0,25980.0,0.09959]
[1693796074769,0.01438181,25981.0,25980.0,0.09965]
[1693796075102,0.01438181,25981.0,25980.0,0.10581]
[1693796075298,0.01438181,25981.0,25980.0,0.10599]
[1693796075497,0.01438181,25981.0,25980.0,0.08463]
[1693796075731,0.01438181,25981.0,25980.0,0.08481]
[1693796075886,0.01438181,25981.0,25980.0,0.08703]
[1693796076082,0.01438181,25981.0,25980.0,0.08715]
[1693796076283,0.01438181,25981.0,25980.0,0.08619]
[1693796076488,0.01438181,25981.0,25980.0,0.08237]
[1693796076686,0.01438181,25981.0,25980.0,0.08655]
[1693796076887,0.01438181,25981.0,25980.0,0.08511]
[1693796077064,0.01438181,25981.0,25980.0,0.08517]
[1693796077270,0.01438181,25981.0,25980.0,0.08595]
[1693796077482,0.01438181,25981.0,25980.0,0.08607]
[1693796077702,0.01438181,25981.0,25980.0,0.08649]
[1693796077907,0.01438181,25981.0,25980.0,0.08865]
[1693796078103,0.01438181,25981.0,25980.0,0.17435105]
[1693796078308,0.01438181,25981.0,25980.0,0.17789105]
[1693796078509,0.01438181,25981.0,25980.0,0.17783105]
[1693796078720,0.01445381,25981.0,25980.0,0.17603105]
[1693796078955,0.01445381,25981.0,25980.0,0.17615105]
[1693796079158,0.01445381,25981.0,25980.0,0.17603105]
[1693796079686,0.01445381,25981.0,25980.0,0.17591105]
[1693796079864,0.01445381,25981.0,25980.0,0.17597105]
[1693796080368,0.01445381,25981.0,25980.0,0.17591105]
[1693796080610,0.01445381,25981.0,25980.0,0.18269105]
[1693796080824,0.01445381,25981.0,25980.0,0.18005105]
[1693796081034,0.01445381,25981.0,25980.0,0.18017105]
[1693796081241,0.01445381,25981.0,25980.0,0.18023105]
[1693796081441,0.01445381,25981.0,25980.0,0.18071105]
[1693796081845,0.01445381,25981.0,25980.0,0.18053105]
[1693796082053,0.01445381,25981.0,25980.0,0.18071105]
[1693796082252,0.01445381,25981.0,25980.0,0.18137105]
[1693796082424,0.01445381,25981.0,25980.0,0.18275105]
[1693796082746,0.01445381,25981.0,25980.0,0.18353105]
[1693796082931,0.01445381,25981.0,25980.0,0.18473105]
[1693796083084,0.01445381,25981.0,25980.0,0.18485105]
[1693796083284,0.01445381,25981.0,25980.0,0.18497105]
[1693796083507,0.01445381,25981.0,25980.0,0.18527105]
[1693796083726,0.01445381,25981.0,25980.0,0.18515105]
[1693796083926,0.01445381,25981.0,25980.0,0.18473105]
[1693796084131,0.01445381,25981.0,25980.0,0.18437105]
[1693796084369,0.01445381,25981.0,25980.0,0.18443105]
[1693796084678,0.01445381,25981.0,25980.0,0.18695105]
[1693796084976,0.01445381,25981.0,25980.0,0.27511444]
[1693796085175,0.01445381,25981.0,25980.0,0.27523444]
[1693796085558,0.01445381,25981.0,25980.0,0.27535444]
[1693796085890,0.01445381,25981.0,25980.0,0.27577444]
[1693796086183,7.2e-05,25981.0,25980.0,0.27583444]
[1693796086421,0.01445381,25981.0,25980.0,0.27511444]
[1693796086624,0.01445381,25981.0,25980.0,0.27451444]
[1693796086775,0.01445381,25981.0,25980.0,0.28237444]
[1693796086977,0.01445381,25981.0,25980.0,0.28219444]
[1693796087139,0.01445381,25981.0,25980.0,0.28141444]
[1693796087337,0.01445381,25981.0,25980.0,0.28147444]
[1693796087636,0.01445381,25981.0,25980.0,0.28153444]
[1693796087838,0.01445381,25981.0,25980.0,0.28081444]
[1693796088043,0.01445381,25981.0,25980.0,0.28087444]
[1693796088242,0.01445381,25981.0,25980.0,0.27985444]
[1693796088460,0.01445381,25981.0,25980.0,0.27973444]
[1693796088714,0.01445381,25981.0,25980.0,0.18899105]
[1693796088882,0.01445381,25981.0,25980.0,0.18905105]
[1693796089109,0.01445381,25981.0,25980.0,0.18875105]
[1693796089285,0.01445381,25981.0,25980.0,0.18893105]
[1693796089648,0.01445381,25981.0,25980.0,0.19019105]
[1693796089863,0.01445381,25981.0,25980.0,0.18797105]
[1693796090064,0.01445381,25981.0,25980.0,0.18785105]
[1693796090213,0.01445381,25981.0,25980.0,0.18791105]
[1693796090402,0.01445381,25981.0,25980.0,0.18797105]
[1693796090606,0.01445381,25981.0,25980.0,0.18737105]
[1693796090976,0.01445381,25981.0,25980.0,0.18053105]
[1693796091278,0.01445381,25981.0,25980.0,0.16001105]
[1693796091484,0.01445381,25981.0,25980.0,0.16031105]
[1693796091765,0.01445381,25981.0,25980.0,0.15995105]
[1693796091941,0.01445381,25981.0,25980.0,0.15989105]
[1693796092147,0.01445381,25981.0,25980.0,0.16007105]
[1693796092309,0.01445381,25981.0,25980.0,0.15863105]
[1693796092507,0.01445381,25981.0,25980.0,0.16037105]
[1693796092764,0.01445381,25981.0,25980.0,0.16055105]
[1693796093003,0.01445381,25981.0,25980.0,0.16031105]
[1693796093181,0.01445381,25981.0,25980.0,0.15893105]
[1693796093398,0.01445381,25981.0,25980.0,0.15785105]
[1693796093602,0.01445381,25981.0,25980.0,0.15797105]
[1693796093771,0.01445381,25981.0,25980.0,0.16337105]
[1693796094143,0.01445381,25981.0,25980.0,0.16487105]
[1693796094628,0.01445381,25981.0,25980.0,0.16529105]
[1693796094842,0.01445381,25981.0,25980.0,0.16505105]
[1693796095217,0.01445381,25981.0,25980.0,0.16661105]
[1693796095426,0.01445381,25981.0,25980.0,0.16697105]
[1693796095630,0.01445381,25981.0,25980.0,0.16655105]
[1693796095834,0.01445381,25981.0,25980.0,0.17273105]
[1693796096051,0.01445381,25981.0,25980.0,0.17279105]
[1693796096254,0.01445381,25981.0,25980.0,0.17237105]
[1693796096482,0.01445381,25981.0,25980.0,0.17177105]
[1693796096613,0.01445381,25981.0,25980.0,0.17159105]
[1693796096815,0.01445381,25981.0,25980.0,0.17165105]
[1693796097042,0.01445381,25981.0,25980.0,0.17093105]
[1693796097241,0.01445381,25981.0,25980.0,0.17171105]
[1693796097440,0.01445381,25981.0,25980.0,0.17165105]
[1693796097663,0.01445381,25981.0,25980.0,0.17651105]
[1693796097867,0.01445381,25981.0,25980.0,0.17789105]
[1693796098069,0.01445381,25981.0,25980.0,0.17555105]
[1693796098389,0.01445381,25981.0,25980.0,0.17567105]
[1693796098661,0.01445381,25981.0,25980.0,0.17807105]
[1693796098855,0.01445381,25981.0,25980.0,0.17813105]
[1693796099062,0.01445381,25981.0,25980.0,0.17819105]
[1693796099243,0.01445381,25981.0,25980.0,0.18359105]
[1693796099440,0.01445381,25981.0,25980.0,0.17999105]
[1693796099583,0.01445381,25981.0,25980.0,0.18233105]
[1693796099784,0.01445381,25981.0,25980.0,0.18053105]
[1693796099990,0.01445381,25981.0,25980.0,0.18023105]
[1693796100195,0.01445381,25981.0,25980.0,0.18029105]
[1693796100390,0.01445381,25981.0,25980.0,0.17921105]
[1693796100588,0.01445381,25981.0,25980.0,0.18215105]
[1693796100791,0.01445381,25981.0,25980.0,0.18173105]
[1693796101313,0.01445381,25981.0,25980.0,0.18179105]
[1693796101490,0.01445381,25981.0,25980.0,0.18101105]
[1693796101704,0.01445381,25981.0,25980.0,0.17771105]
[1693796101899,0.01445381,25981.0,25980.0,0.17789105]
[1693796102107,0.01445381,25981.0,25980.0,0.17897105]
[1693796102329,0.01445381,25981.0,25980.0,0.17903105]
[1693796102556,0.00945381,25981.0,25980.0,0.36945105]
[1693796102761,0.00945381,25981.0,25980.0,0.36981105]
[1693796102936,0.00945381,25981.0,25980.0,0.36939105]
[1693796103295,0.00945381,25981.0,25980.0,0.36705105]
[1693796103525,0.00945381,25981.0,25980.0,0.37083105]
[1693796103726,0.00945381,25981.0,25980.0,0.36513105]
[1693796103927,0.00945381,25981.0,25980.0,0.36537105]
[1693796104129,0.00945381,25981.0,25980.0,0.35283105]
[1693796104271,0.00945381,25981.0,25980.0,0.35475105]
[1693796104469,0.00945381,25981.0,25980.0,0.35631105]
[1693796104690,0.00945381,25981.0,25980.0,0.35655105]
[1693796104896,0.00945381,25981.0,25980.0,0.35637105]
[1693796105279,0.00945381,25981.0,25980.0,0.35649105]
[1693796105493,0.00945381,25981.0,25980.0,0.35655105]
[1693796105694,0.00945381,25981.0,25980.0,0.35637105]
[1693796105927,0.00945381,25981.0,25980.0,0.35565105]
[1693796106151,0.00945381,25981.0,25980.0,0.35667105]
[1693796106446,0.00945381,25982.0,25980.0,0.35805105]
[1693796106605,0.2815,25984.0,25980.0,0.35631105]
[1693796106606,0.00945381,25981.0,25980.0,0.35631105]
[1693796106784,0.00945381,25981.0,25980.0,0.51212953]
[1693796106988,0.00945381,25981.0,25980.0,0.61514953]
[1693796107255,0.00945381,25981.0,25980.0,0.61108953]
[1693796107450,0.00945381,25981.0,25980.0,0.62152953]
[1693796107651,0.00945381,25981.0,25980.0,1.08321496]
[1693796107858,0.00945381,25981.0,25980.0,0.63092953]
[1693796108059,0.00945381,25981.0,25980.0,0.98918687]
[1693796108191,0.00945381,25981.0,25980.0,0.99306687]
[1693796108393,0.00945381,25981.0,25980.0,0.99168687]
[1693796108709,0.00945381,25981.0,25980.0,0.99042687]
[1693796108915,0.00945381,25981.0,25980.0,1.17389366]
[1693796109118,0.00945381,25981.0,25980.0,1.17575366]
[1693796109344,0.00945381,25981.0,25980.0,1.17623366]
[1693796109543,0.00945381,25981.0,25980.0,1.17497366]
[1693796109777,0.00945381,25981.0,25980.0,1.17503366]
[1693796109968,0.00945381,25981.0,25980.0,1.17527366]
[1693796110173,0.00945381,25981.0,25980.0,1.17509366]
[1693796110347,0.00945381,25981.0,25980.0,1.17371366]
[1693796110546,0.00945381,25981.0,25980.0,1.17281366]
[1693796110867,0.00945381,25981.0,25980.0,1.17245366]
[1693796111047,0.00945381,25981.0,25980.0,1.17239366]
[1693796111228,0.00945381,25981.0,25980.0,1.17191366]
[1693796111432,0.00945381,25981.0,25980.0,1.17233366]
[1693796111670,0.00945381,25981.0,25980.0,1.17215366]
[1693796111825,0.00945381,25981.0,25980.0,1.17095366]
[1693796112021,0.00945381,25981.0,25980.0,0.58445039]
[1693796112227,0.00945381,25981.0,25980.0,0.51227039]
[1693796112422,0.00945381,25981.0,25980.0,0.58439039]
[1693796112628,0.00945381,25981.0,25980.0,0.58613039]
[1693796112829,0.00945381,25981.0,25980.0,0.58787039]
[1693796113299,0.00945381,25981.0,25980.0,0.59069039]
[1693796113507,0.00945381,25981.0,25980.0,0.59297039]
[1693796113705,0.00945381,25981.0,25980.0,0.59333039]
[1693796113907,0.00945381,25981.0,25980.0,0.59339039]
[1693796114141,0.00945381,25981.0,25980.0,0.59165039]
[1693796114313,0.00945381,25981.0,25980.0,0.59027039]
[1693796114543,0.00945381,25981.0,25980.0,0.58487039]
[1693796114718,0.00945381,25981.0,25980.0,0.58415039]
[1693796114919,0.00945381,25981.0,25980.0,0.58217039]
[1693796115122,0.00945381,25981.0,25980.0,0.58289039]
[1693796115325,0.00945381,25981.0,25980.0,0.58229039]
[1693796115527,0.00945381,25981.0,25980.0,0.3747153]
[1693796132801,0.00945381,25981.0,25980.0,0.4464153]
[1693796132958,0.00945381,25981.0,25980.0,0.4470753]
[1693796133310,0.00945381,25981.0,25980.0,0.4460553]
[1693796133607,0.00945381,25981.0,25980.0,0.4470153]
[1693796133739,0.00945381,25981.0,25980.0,0.4465353]
[1693796134110,0.00945381,25981.0,25980.0,0.4443153]
[1693796134260,0.00945381,25981.0,25980.0,0.4437153]
[1693796134471,0.00945381,25981.0,25980.0,0.4444353]
[1693796134653,0.00945381,25981.0,25980.0,0.4458753]
[1693796134854,0.00945381,25981.0,25980.0,0.4462953]
[1693796135058,0.00945381,25981.0,25980.0,0.4463553]
[1693796135256,0.00945381,25981.0,25980.0,0.4464753]
[1693796135502,0.00945381,25981.0,25980.0,0.4462953]
[1693796136205,0.00945381,25981.0,25980.0,0.4459353]
[1693796136399,0.00945381,25981.0,25980.0,0.4458153]
[1693796136573,0.00945381,25981.0,25980.0,0.4461153]
[1693796136776,0.00945381,25981.0,25980.0,0.4458153]
[1693796136957,0.00945381,25981.0,25980.0,0.4462953]
[1693796137156,0.00945381,25981.0,25980.0,0.4466553]
[1693796137407,0.00945381,25981.0,25980.0,0.4467153]
[1693796137613,0.00945381,25981.0,25980.0,0.4467753]
[1693796137788,0.00945381,25981.0,25980.0,0.4467153]
[1693796138227,0.00945381,25981.0,25980.0,0.4467753]
[1693796138528,0.00945381,25981.0,25980.0,0.4486953]
[1693796138868,0.00945381,25981.0,25980.0,0.4486353]
[1693796139068,0.00945381,25981.0,25980.0,0.4480953]
[1693796139269,0.00945381,25981.0,25980.0,0.4490553]
[1693796139471,0.00945381,25981.0,25980.0,0.4544553]
[1693796139722,0.00945381,25981.0,25980.0,0.4552353]
[1693796140084,0.00945381,25981.0,25980.0,0.4551753]
[1693796140410,0.00945381,25981.0,25980.0,0.4554153]
[1693796140616,0.00945381,25981.0,25980.0,0.4530153]
[1693796140843,0.00945381,25981.0,25980.0,0.4529553]
[1693796141043,0.00945381,25981.0,25980.0,0.4536153]
[1693796141247,0.00945381,25981.0,25980.0,0.4535553]
[1693796141406,0.00945381,25981.0,25980.0,0.4536753]
[1693796141609,0.00945381,25981.0,25980.0,0.4534353]
[1693796141799,0.00945381,25981.0,25980.0,0.4666353]
[1693796141997,0.00945381,25981.0,25980.0,0.4646553]
[1693796142208,0.00945381,25981.0,25980.0,0.4647753]
[1693796142408,0.00945381,25981.0,25980.0,0.4645953]
[1693796142635,0.00945381,25981.0,25980.0,0.4645353]
[1693796142868,0.00945381,25981.0,25980.0,0.4642353]
[1693796143069,0.00945381,25981.0,25980.0,0.96702972]
[1693796143292,0.00945381,25981.0,25980.0,0.98808972]
[1693796143503,0.00945381,25981.0,25980.0,0.98538972]
[1693796143723,0.00945381,25981.0,25980.0,0.98562972]
[1693796143931,0.00945381,25981.0,25980.0,0.98532972]
[1693796144146,0.00945381,25981.0,25980.0,0.98526972]
[1693796144355,0.00945381,25981.0,25980.0,0.98418972]
[1693796144567,0.00945381,25981.0,25980.0,0.98400972]
[1693796144784,0.00945381,25981.0,25980.0,0.98334972]
[1693796144988,0.00945381,25981.0,25980.0,0.98316972]
[1693796145476,0.00945381,25981.0,25980.0,0.98310972]
[1693796145632,0.00945381,25981.0,25980.0,0.98268972]
[1693796145840,0.00945381,25981.0,25980.0,0.98244972]
[1693796146041,0.00945381,25981.0,25980.0,0.98232972]
[1693796146289,0.00945381,25981.0,25980.0,0.98214972]
[1693796146468,0.00945381,25981.0,25980.0,0.98202972]
[1693796146643,0.00945381,25981.0,25980.0,0.98124972]
[1693796147221,0.00945381,25981.0,25980.0,0.98106972]
[1693796147375,0.00945381,25981.0,25980.0,0.98088972]
[1693796147578,0.00945381,25981.0,25980.0,0.98022972]
[1693796147784,0.00945381,25981.0,25980.0,0.97950972]
[1693796147977,0.00945381,25981.0,25980.0,0.97962972]
[1693796148309,0.00945381,25981.0,25980.0,0.97932972]
[1693796148507,0.00945381,25981.0,25980.0,0.97860972]
[1693796148713,0.00945381,25981.0,25980.0,0.97878972]
[1693796148917,0.00945381,25981.0,25980.0,0.97854972]
[1693796149117,0.00945381,25981.0,25980.0,1.16183651]
[1693796149320,0.00945381,25981.0,25980.0,1.16177651]
[1693796149528,0.00945381,25981.0,25980.0,1.16147651]
[1693796149735,0.00945381,25981.0,25980.0,0.97782972]
[1693796149937,0.00945381,25981.0,25980.0,0.97776972]
[1693796150138,0.00945381,25981.0,25980.0,0.97782972]
[1693796150343,0.00945381,25981.0,25980.0,0.97746972]
[1693796150546,0.00945381,25981.0,25980.0,0.97740972]
[1693796150755,0.00945381,25981.0,25980.0,0.97686972]
[1693796150952,0.00945381,25981.0,25980.0,0.97674972]
[1693796151170,0.00945381,25981.0,25980.0,0.97662972]
[1693796151379,0.00945381,25981.0,25980.0,0.97656972]
[1693796151585,0.00945381,25981.0,25980.0,0.97644972]
[1693796151756,0.00945381,25981.0,25980.0,0.98280972]
[1693796151971,0.00945381,25981.0,25980.0,0.98304972]
[1693796152139,0.00945381,25981.0,25980.0,0.98070972]
[1693796152344,0.00945381,25981.0,25980.0,0.97542972]
[1693796152712,0.00945381,25981.0,25980.0,0.97530972]
[1693796152895,0.00945381,25981.0,25980.0,0.97314972]
[1693796153139,0.00945381,25981.0,25980.0,1.5920882]
[1693796153344,0.00945381,25981.0,25980.0,1.6779682]
[1693796153520,0.00945381,25981.0,25980.0,1.6788082]
[1693796153770,0.00945381,25981.0,25980.0,1.6774882]
[1693796153960,0.00945381,25981.0,25980.0,1.7755682]
[1693796154171,0.00945381,25981.0,25980.0,1.7762882]
[1693796154448,0.00945381,25981.0,25980.0,1.7796082]
[1693796154668,0.00945381,25981.0,25980.0,1.7783682]
[1693796154856,0.00945381,25981.0,25980.0,1.7690082]
[1693796155081,0.00945381,25982.0,25980.0,1.8112882]
[1693796155283,0.00945381,25981.0,25980.0,1.10593633]
[1693796155488,0.0409805,25985.0,25981.0,0.26532]
[1693796155489,0.00945381,25983.0,25981.0,0.26532]
[1693796155701,0.00945381,25983.0,25982.0,0.17479891]
[1693796155908,0.00945381,25983.0,25982.0,0.29186891]
[1693796156110,0.00945381,25983.0,25982.0,0.42866728]
[1693796156316,0.00945381,25983.0,25982.0,0.52059679]
[1693796156517,0.00945381,25983.0,25982.0,0.37657842]
[1693796156819,0.00945381,25983.0,25982.0,0.37585842]
[1693796157021,0.00945381,25983.0,25982.0,0.37573842]
[1693796157224,0.00945381,25983.0,25982.0,0.37525842]
[1693796157380,0.00945381,25983.0,25982.0,0.37447842]
[1693796157583,0.00945381,25983.0,25982.0,0.37417842]
[1693796157787,0.00945381,25983.0,25982.0,0.37507842]
[1693796157988,0.00945381,25983.0,25982.0,0.37841842]
[1693796158223,0.00945381,25983.0,25982.0,0.37673842]
[1693796158400,0.00945381,25983.0,25982.0,0.37331842]
[1693796158609,0.00945381,25983.0,25982.0,0.37043842]
[1693796159009,0.00945381,25983.0,25982.0,0.29251842]
[1693796159209,0.00945381,25983.0,25982.0,0.28927842]
[1693796159415,0.00945381,25983.0,25982.0,0.28969842]
[1693796159613,0.00945381,25983.0,25982.0,0.28957842]
[1693796159844,0.00945381,25983.0,25982.0,0.28651842]
[1693796160052,0.00945381,25983.0,25982.0,0.28501842]
[1693796160254,0.00945381,25983.0,25982.0,0.28627842]
[1693796160458,0.00945381,25983.0,25982.0,0.28681842]
[1693796160567,0.00945381,25983.0,25982.0,0.28507842]
[1693796160774,0.00945381,25983.0,25982.0,0.18739842]
[1693796160985,0.00945381,25983.0,25982.0,0.10059951]
[1693796164338,0.27978288,25983.0,25982.0,0.10059951]
[1693796171512,0.00945381,25983.0,25982.0,0.10059951]
[1693796179667,0.00945381,25983.0,25982.0,0.16527951]
[1693796179867,0.00945381,25983.0,25982.0,0.16623951]
[1693796180077,0.00945381,25983.0,25982.0,0.17307951]
[1693796180282,0.00945381,25983.0,25982.0,0.17313951]
[1693796180477,0.00945381,25983.0,25982.0,0.17355951]
[1693796180739,0.00945381,25983.0,25982.0,0.17349951]
[1693796180848,0.00945381,25983.0,25982.0,0.17337951]
[1693796181210,0.00945381,25983.0,25982.0,0.17289951]
[1693796181435,0.00945381,25983.0,25982.0,0.17277951]
[1693796181667,0.00945381,25983.0,25982.0,0.17577951]
[1693796181948,0.00945381,25983.0,25982.0,0.17511951]
[1693796182247,0.00945381,25983.0,25982.0,0.17559951]
[1693796182401,0.00945381,25983.0,25982.0,0.17529951]
[1693796182607,0.00945381,25983.0,25982.0,0.17553951]
[1693796182812,0.00945381,25983.0,25982.0,0.17541951]
[1693796183039,0.00945381,25983.0,25982.0,0.17553951]
[1693796183239,0.00945381,25983.0,25982.0,0.17559951]
[1693796183496,0.00945381,25983.0,25982.0,0.17601951]
[1693796183695,0.00945381,25983.0,25982.0,0.17583951]
[1693796183898,0.00945381,25983.0,25982.0,0.17553951]
[1693796184127,0.00945381,25983.0,25982.0,0.17589951]
[1693796184417,0.00945381,25983.0,25982.0,0.17547951]
[1693796184619,0.00945381,25983.0,25982.0,0.17625951]
[1693796184818,0.00945381,25983.0,25982.0,0.17205951]
[1693796185025,0.00945381,25983.0,25982.0,0.17133951]
[1693796185155,0.00945381,25983.0,25982.0,0.16905951]
[1693796185376,0.00945381,25983.0,25982.0,0.16899951]
[1693796185687,0.00945381,25983.0,25982.0,0.16959951]
[1693796185892,0.00945381,25983.0,25982.0,0.17061951]
[1693796186068,0.00945381,25983.0,25982.0,0.17535951]
[1693796186244,0.00945381,25983.0,25982.0,0.17613951]
[1693796186449,0.00945381,25983.0,25982.0,0.17601951]
[1693796186855,0.00945381,25983.0,25982.0,0.17589951]
[1693796187142,0.00945381,25983.0,25982.0,0.17619951]
[1693796187415,0.00945381,25983.0,25982.0,0.26797573]
[1693796187620,0.00945381,25983.0,25982.0,0.26491573]
[1693796187818,0.00945381,25983.0,25982.0,0.26335573]
[1693796188023,0.00945381,25983.0,25982.0,0.26299573]
[1693796188250,0.00945381,25983.0,25982.0,0.26263573]
[1693796188399,0.00945381,25983.0,25982.0,0.26299573]
[1693796188616,0.00945381,25983.0,25982.0,0.26413573]
[1693796188873,0.00945381,25983.0,25982.0,0.26395573]
[1693796189093,0.00945381,25983.0,25982.0,0.26353573]
[1693796189284,0.00945381,25983.0,25982.0,0.26029573]
[1693796189495,0.00945381,25983.0,25982.0,0.25909573]
[1693796189718,0.00945381,25983.0,25982.0,0.25921573]
[1693796189827,0.00945381,25983.0,25982.0,0.26059573]
[1693796190029,0.00945381,25983.0,25982.0,0.26041573]
[1693796190238,0.00945381,25983.0,25982.0,0.25993573]
[1693796190467,0.00945381,25983.0,25982.0,0.26047573]
[1693796190664,0.00853381,25983.0,25982.0,0.26041573]
[1693796190864,0.00853381,25983.0,25982.0,0.26077573]
[1693796191170,0.00853381,25983.0,25982.0,0.26065573]
[1693796191485,0.00853381,25983.0,25982.0,0.26131573]
[1693796191714,0.00853381,25983.0,25982.0,0.26155573]
[1693796192055,0.00853381,25983.0,25982.0,0.26173573]
[1693796192207,0.00853381,25983.0,25982.0,0.26215573]
[1693796192415,0.00853381,25983.0,25982.0,0.26137573]
[1693796192646,0.00853381,25983.0,25982.0,0.26227573]
[1693796192850,0.00853381,25983.0,25982.0,0.26161573]
[1693796192978,0.00853381,25983.0,25982.0,0.26197573]
[1693796193184,0.00853381,25983.0,25982.0,0.26437573]
[1693796193381,0.00853381,25983.0,25982.0,0.26467573]
[1693796193582,0.00853381,25983.0,25982.0,0.26461573]
[1693796193984,0.00853381,25983.0,25982.0,0.26497573]
[1693796194185,0.00853381,25983.0,25982.0,0.26509573]
[1693796194406,0.00853381,25983.0,25982.0,0.26521573]
[1693796194527,0.00853381,25983.0,25982.0,0.26503573]
[1693796194723,0.00853381,25983.0,25982.0,0.26515573]
[1693796194976,0.00853381,25983.0,25982.0,0.26527573]
[1693796195317,0.00853381,25983.0,25982.0,0.26191573]
[1693796195596,0.00853381,25983.0,25982.0,0.26095573]
[1693796195774,0.00853381,25983.0,25982.0,0.26107573]
[1693796196138,0.00853381,25983.0,25982.0,0.26071573]
[1693796196782,0.00853381,25983.0,25982.0,0.26095573]
[1693796196983,0.00853381,25983.0,25982.0,0.26119573]
[1693796197180,0.00853381,25983.0,25982.0,0.26461573]
[1693796197475,0.00853381,25983.0,25982.0,0.26023573]
[1693796197685,0.00853381,25983.0,25982.0,0.25981573]
[1693796197884,0.00853381,25983.0,25982.0,0.25987573]
[1693796198090,0.00853381,25983.0,25982.0,0.26011573]
[1693796198264,0.00853381,25983.0,25982.0,0.25999573]
[1693796198445,0.00853381,25983.0,25982.0,0.25975573]
[1693796198645,0.00853381,25983.0,25982.0,0.26017573]
[1693796198847,0.00853381,25983.0,25982.0,0.26071573]
[1693796199051,0.00853381,25983.0,25982.0,0.26089573]
[1693796199264,0.00853381,25983.0,25982.0,0.26101573]
[1693796199798,0.00853381,25983.0,25982.0,0.26113573]
[1693796200195,0.00853381,25983.0,25982.0,0.26989573]
[1693796200336,0.00853381,25983.0,25982.0,0.27217573]
[1693796200554,0.00853381,25986.0,25982.0,1.67394358]
[1693796200762,0.00853381,25986.0,25984.0,0.083]
[1693796200962,0.00139891,25988.0,25984.0,0.56228727]
[1693796201165,0.00853381,25986.0,25985.0,0.3553552]
[1693796201368,0.00993272,25988.0,25985.0,0.95438351]
[1693796201582,0.00853381,25987.0,25986.0,0.09178872]
[1693796201812,0.00853381,25987.0,25986.0,0.44335872]
[1693796202017,0.00853381,25987.0,25986.0,0.43831872]
[1693796202403,0.00040465,25988.0,25986.0,0.45247872]
[1693796202612,0.00040465,25988.0,25987.0,0.083]
[1693796202824,0.00893846,25988.0,25987.0,0.20313]
[1693796203082,0.00893846,25988.0,25987.0,0.20193]
[1693796203276,0.00893846,25988.0,25987.0,1.2034055]
[1693796203277,0.00040465,25988.0,25987.0,1.2034055]
[1693796203487,0.00040465,25988.0,25987.0,1.7157092]
[1693796203690,0.00040465,25988.0,25987.0,1.75883731]